[Event "Live Chess"]
[Site "Chess.com"]
[Date "2023.05.21"]
[Round "-"]
[White "pseudocyst"]
[Black "WelshTiger"]
[Result "0-1"]
[WhiteElo "1930"]
[BlackElo "2358"]
[TimeControl "300"]
[EndTime "23:56:41 PDT"]
[Termination "WelshTiger won on time"]

1. d4 {[%clk 0:04:56.9]} 1... d5 {[%clk 0:04:57.6]} 2. c4 {[%clk 0:04:55.6]}
2... e6 {[%clk 0:04:54.5]} 3. Nc3 {[%clk 0:04:54.7]} 3... c5 {[%clk 0:04:53.9]}
4. e3 {[%clk 0:04:53.4]} 4... Nf6 {[%clk 0:04:49.3]} 5. Nf3 {[%clk 0:04:51.6]}
5... Nc6 {[%clk 0:04:48.3]} 6. a3 {[%clk 0:04:50.5]} 6... a6 {[%clk 0:04:46.9]}
7. dxc5 {[%clk 0:04:49.3]} 7... Bxc5 {[%clk 0:04:45.6]} 8. b4 {[%clk 0:04:48.9]}
8... Ba7 {[%clk 0:04:44.7]} 9. cxd5 {[%clk 0:04:47.8]} 9... exd5 {[%clk
0:04:42.2]} 10. h3 {[%clk 0:04:45.7]} 10... O-O {[%clk 0:04:40.9]} 11. Bd3
{[%clk 0:04:40.8]} 11... d4 {[%clk 0:04:38.3]} 12. exd4 {[%clk 0:04:38.7]} 12...
Nxd4 {[%clk 0:04:38.2]} 13. O-O {[%clk 0:04:36.5]} 13... Be6 {[%clk 0:04:23.9]}
14. Bb2 {[%clk 0:04:34.8]} 14... Nxf3+ {[%clk 0:04:20.7]} 15. Qxf3 {[%clk
0:04:32.5]} 15... Bd4 {[%clk 0:04:19.9]} 16. Rfd1 {[%clk 0:04:28.4]} 16... Rc8
{[%clk 0:03:58]} 17. Rac1 {[%clk 0:04:26.7]} 17... Qe7 {[%clk 0:03:26]} 18. Bb1
{[%clk 0:04:14.2]} 18... Rfd8 {[%clk 0:03:14.3]} 19. Re1 {[%clk 0:03:32.6]}
19... Qf8 {[%clk 0:02:53.5]} 20. Qe2 {[%clk 0:03:02]} 20... Bc4 {[%clk
0:02:51.1]} 21. Qf3 {[%clk 0:02:53.4]} 21... b5 {[%clk 0:02:42.8]} 22. Nd1
{[%clk 0:02:52.4]} 22... Bxb2 {[%clk 0:02:39.3]} 23. Nxb2 {[%clk 0:02:52.3]}
23... Be6 {[%clk 0:02:34.9]} 24. Nd3 {[%clk 0:02:47]} 24... a5 {[%clk
0:02:26.3]} 25. Nc5 {[%clk 0:02:45.8]} 25... Bd5 {[%clk 0:02:20.6]} 26. Qf5
{[%clk 0:02:35.6]} 26... axb4 {[%clk 0:02:14.9]} 27. axb4 {[%clk 0:02:33.8]}
27... Bc4 {[%clk 0:02:11.6]} 28. Rcd1 {[%clk 0:02:20.7]} 28... Rxd1 {[%clk
0:02:09]} 29. Rxd1 {[%clk 0:02:19.1]} 29... Rd8 {[%clk 0:02:08.6]} 30. Nd7
{[%clk 0:02:02.2]} 30... Rxd7 {[%clk 0:00:32.7]} 31. Rxd7 {[%clk 0:01:59.2]}
31... Qe8 {[%clk 0:00:31.9]} 32. Rc7 {[%clk 0:01:15.8]} 32... Be6 {[%clk
0:00:30.9]} 33. Qc5 {[%clk 0:01:13.1]} 33... g6 {[%clk 0:00:28.8]} 34. Qe7
{[%clk 0:01:11.7]} 34... Qxe7 {[%clk 0:00:27.8]} 35. Rxe7 {[%clk 0:01:10.3]}
35... Kg7 {[%clk 0:00:27.7]} 36. Bd3 {[%clk 0:01:07.7]} 36... Nd5 {[%clk
0:00:25.5]} 37. Rb7 {[%clk 0:01:05.3]} 37... Nxb4 {[%clk 0:00:24.5]} 38. Bxb5
{[%clk 0:01:03.5]} 38... Nc2 {[%clk 0:00:23.7]} 39. Bd7 {[%clk 0:01:02.5]} 39...
Bd5 {[%clk 0:00:18]} 40. Rb2 {[%clk 0:00:52.9]} 40... Na3 {[%clk 0:00:15.5]} 41.
Ba4 {[%clk 0:00:45.6]} 41... Nc4 {[%clk 0:00:13.7]} 42. Rb4 {[%clk 0:00:40.7]}
42... Be6 {[%clk 0:00:13.6]} 43. Bb3 {[%clk 0:00:38]} 43... Ne5 {[%clk
0:00:12.6]} 44. Bxe6 {[%clk 0:00:37]} 44... fxe6 {[%clk 0:00:12.5]} 45. f4
{[%clk 0:00:33.5]} 45... Nf7 {[%clk 0:00:11.4]} 46. g4 {[%clk 0:00:32.4]} 46...
Kf6 {[%clk 0:00:11.3]} 47. Kf2 {[%clk 0:00:31.1]} 47... h6 {[%clk 0:00:10.4]}
48. Kf3 {[%clk 0:00:30]} 48... g5 {[%clk 0:00:10.3]} 49. Rb6 {[%clk 0:00:24.8]}
49... gxf4 {[%clk 0:00:08.2]} 50. Kxf4 {[%clk 0:00:24.3]} 50... Ne5 {[%clk
0:00:07.9]} 51. Rb5 {[%clk 0:00:19.2]} 51... Ng6+ {[%clk 0:00:07.8]} 52. Kg3
{[%clk 0:00:17.7]} 52... Ne5 {[%clk 0:00:07.7]} 53. h4 {[%clk 0:00:15.9]} 53...
Ng6 {[%clk 0:00:07.6]} 54. Rb6 {[%clk 0:00:12.8]} 54... Ne5 {[%clk 0:00:06.7]}
55. h5 {[%clk 0:00:10.8]} 55... Nf7 {[%clk 0:00:05.6]} 56. Kf4 {[%clk
0:00:09.6]} 56... Ng5 {[%clk 0:00:05.5]} 57. Rb5 {[%clk 0:00:08.2]} 57... Nf7
{[%clk 0:00:04.9]} 58. g5+ {[%clk 0:00:07.6]} 58... Nxg5 {[%clk 0:00:04.8]} 59.
Kg4 {[%clk 0:00:06.5]} 59... Nf7 {[%clk 0:00:04.5]} 60. Rb7 {[%clk 0:00:06.1]}
60... Ng5 {[%clk 0:00:04.4]} 61. Rb8 {[%clk 0:00:04.2]} 61... Nf7 {[%clk
0:00:04.3]} 62. Rg8 {[%clk 0:00:03.6]} 62... Ng5 {[%clk 0:00:04.2]} 63. Rg6+
{[%clk 0:00:03.1]} 63... Kf7 {[%clk 0:00:03.3]} 64. Rxh6 {[%clk 0:00:02.6]}
64... Ne4 {[%clk 0:00:03.2]} 65. Rf6+ {[%clk 0:00:01.4]} 65... Nxf6+ {[%clk
0:00:03.1]} 66. Kg5 {[%clk 0:00:01]} 66... Ne4+ {[%clk 0:00:02.1]} 67. Kh6
{[%clk 0:00:00.1]} 67... Nf6 {[%clk 0:00:02]} 0-1

[Event "Live Chess"]
[Site "Chess.com"]
[Date "2023.05.21"]
[Round "-"]
[White "MaximKris"]
[Black "Pandreq"]
[Result "1-0"]
[WhiteElo "1827"]
[BlackElo "1251"]
[TimeControl "300"]
[EndTime "23:56:44 PDT"]
[Termination "MaximKris won by resignation"]

1. e4 {[%clk 0:04:58.8]} 1... e5 {[%clk 0:04:56.5]} 2. Nf3 {[%clk 0:04:58.1]}
2... Nc6 {[%clk 0:04:55.4]} 3. Bb5 {[%clk 0:04:53.5]} 3... a6 {[%clk 0:04:53.2]}
4. Bxc6 {[%clk 0:04:51.9]} 4... bxc6 {[%clk 0:04:49.4]} 5. O-O {[%clk
0:04:51.8]} 5... Qf6 {[%clk 0:04:29.7]} 6. d3 {[%clk 0:04:47]} 6... d5 {[%clk
0:04:26.1]} 7. Bg5 {[%clk 0:04:44.1]} 7... Qd6 {[%clk 0:04:20.7]} 8. Nc3 {[%clk
0:04:41.5]} 8... Be7 {[%clk 0:04:08.9]} 9. Bxe7 {[%clk 0:04:39.5]} 9... Nxe7
{[%clk 0:04:07.6]} 10. exd5 {[%clk 0:04:33.5]} 10... cxd5 {[%clk 0:04:06.2]} 11.
Re1 {[%clk 0:04:32.5]} 11... Ng6 {[%clk 0:03:59.4]} 12. d4 {[%clk 0:04:27.9]}
12... e4 {[%clk 0:03:54.9]} 13. Nd2 {[%clk 0:04:25.3]} 13... Bf5 {[%clk
0:03:50.4]} 14. f3 {[%clk 0:04:22.4]} 14... O-O {[%clk 0:03:47.7]} 15. fxe4
{[%clk 0:04:21]} 15... dxe4 {[%clk 0:03:38.6]} 16. Ndxe4 {[%clk 0:04:17.5]}
16... Bxe4 {[%clk 0:03:33]} 17. Nxe4 {[%clk 0:04:16]} 17... Qb6 {[%clk
0:03:29.3]} 18. b3 {[%clk 0:04:12]} 18... Rad8 {[%clk 0:03:24.1]} 19. c3 {[%clk
0:04:07.9]} 19... c5 {[%clk 0:03:22.6]} 20. h3 {[%clk 0:04:07.8]} 20... cxd4
{[%clk 0:03:20.3]} 21. cxd4 {[%clk 0:04:06.7]} 21... Rxd4 {[%clk 0:03:17.3]} 22.
Qf3 {[%clk 0:04:00.9]} 22... Rxe4+ {[%clk 0:03:08.1]} 23. Kh1 {[%clk 0:03:59.1]}
23... Rxe1+ {[%clk 0:03:04.1]} 24. Rxe1 {[%clk 0:03:59]} 24... Rd8 {[%clk
0:02:54.3]} 25. Qc3 {[%clk 0:03:54.1]} 25... Nf4 {[%clk 0:02:41]} 26. Qe5 {[%clk
0:03:44]} 26... Qd6 {[%clk 0:02:20.4]} 27. Qxd6 {[%clk 0:03:42.4]} 1-0

[Event "Live Chess"]
[Site "Chess.com"]
[Date "2023.05.21"]
[Round "-"]
[White "YrrriKharkiv"]
[Black "raminguy"]
[Result "1-0"]
[WhiteElo "2053"]
[BlackElo "1928"]
[TimeControl "300"]
[EndTime "23:56:57 PDT"]
[Termination "YrrriKharkiv won by resignation"]

1. d4 {[%clk 0:04:56.1]} 1... d6 {[%clk 0:04:59.2]} 2. Nf3 {[%clk 0:04:54.1]}
2... Nf6 {[%clk 0:04:58.2]} 3. Nc3 {[%clk 0:04:52.1]} 3... g6 {[%clk 0:04:57.5]}
4. h3 {[%clk 0:04:50.8]} 4... Bg7 {[%clk 0:04:56.9]} 5. e4 {[%clk 0:04:50.5]}
5... O-O {[%clk 0:04:56.6]} 6. Be2 {[%clk 0:04:47.1]} 6... Re8 {[%clk
0:04:55.6]} 7. Bg5 {[%clk 0:04:46]} 7... h6 {[%clk 0:04:52]} 8. Be3 {[%clk
0:04:44.6]} 8... Nc6 {[%clk 0:04:46.4]} 9. Qd2 {[%clk 0:04:43.1]} 9... Kh7
{[%clk 0:04:43.9]} 10. g4 {[%clk 0:04:41.2]} 10... Nd7 {[%clk 0:04:32.4]} 11. h4
{[%clk 0:04:22.2]} 11... Nb6 {[%clk 0:04:29]} 12. h5 {[%clk 0:04:15.7]} 12... g5
{[%clk 0:04:26.1]} 13. O-O-O {[%clk 0:03:49.5]} 13... e5 {[%clk 0:04:08.2]} 14.
d5 {[%clk 0:03:30.9]} 14... Nb8 {[%clk 0:04:01.4]} 15. Nxg5+ {[%clk 0:03:28.3]}
15... hxg5 {[%clk 0:03:58.7]} 16. Bxg5 {[%clk 0:03:27.9]} 16... f6 {[%clk
0:03:57.2]} 17. Be3 {[%clk 0:03:24.1]} 17... Rh8 {[%clk 0:03:46.6]} 18. h6
{[%clk 0:03:20]} 18... Bf8 {[%clk 0:03:43.4]} 19. g5 {[%clk 0:03:16.7]} 19...
fxg5 {[%clk 0:03:42.3]} 20. Bxg5 {[%clk 0:03:14.9]} 20... Be7 {[%clk 0:03:41.7]}
21. Rdg1 {[%clk 0:03:13.8]} 21... Rg8 {[%clk 0:03:40.1]} 22. f4 {[%clk 0:03:02]}
22... Bxg5 {[%clk 0:03:34]} 23. fxg5 {[%clk 0:03:00.4]} 23... Rg6 {[%clk
0:03:32.9]} 24. Bh5 {[%clk 0:02:58.1]} 24... Qg8 {[%clk 0:03:31.3]} 25. Rh2
{[%clk 0:02:27.2]} 25... Na6 {[%clk 0:03:27.2]} 26. Rf2 {[%clk 0:02:17.6]} 26...
Bd7 {[%clk 0:03:19.6]} 27. Bxg6+ {[%clk 0:02:16.1]} 27... Qxg6 {[%clk
0:03:14.5]} 28. Rf6 {[%clk 0:02:15.7]} 28... Qh5 {[%clk 0:03:02.5]} 29. g6+
{[%clk 0:02:09.1]} 29... Kh8 {[%clk 0:02:56.5]} 30. g7+ {[%clk 0:01:54.1]} 30...
Kh7 {[%clk 0:02:54.9]} 31. Rf8 {[%clk 0:01:48.1]} 1-0

[Event "Live Chess"]
[Site "Chess.com"]
[Date "2023.05.21"]
[Round "-"]
[White "chessfiction"]
[Black "Davidagye"]
[Result "1-0"]
[WhiteElo "2347"]
[BlackElo "1671"]
[TimeControl "300"]
[EndTime "23:57:04 PDT"]
[Termination "chessfiction won by resignation"]

1. e4 {[%clk 0:04:58]} 1... Nf6 {[%clk 0:04:59.2]} 2. e5 {[%clk 0:04:57]} 2...
Nd5 {[%clk 0:04:58.5]} 3. Nc3 {[%clk 0:04:56.9]} 3... Nxc3 {[%clk 0:04:55.4]} 4.
dxc3 {[%clk 0:04:56.8]} 4... d5 {[%clk 0:04:54.8]} 5. exd6 {[%clk 0:04:55.6]}
5... cxd6 {[%clk 0:04:53.6]} 6. Bc4 {[%clk 0:04:54.5]} 6... Nc6 {[%clk
0:04:49.1]} 7. Nf3 {[%clk 0:04:52.8]} 7... Bg4 {[%clk 0:04:47.3]} 8. Bxf7+
{[%clk 0:04:50]} 8... Kxf7 {[%clk 0:04:44.1]} 9. Ng5+ {[%clk 0:04:49.5]} 9...
Kg8 {[%clk 0:04:43.3]} 10. Qxg4 {[%clk 0:04:49.3]} 10... Qc8 {[%clk 0:04:41.3]}
11. Qc4+ {[%clk 0:04:45.4]} 11... e6 {[%clk 0:04:37.2]} 12. Nxe6 {[%clk
0:04:43.2]} 12... Qe8 {[%clk 0:04:36.4]} 13. O-O {[%clk 0:04:39.8]} 13... Na5
{[%clk 0:04:34.6]} 14. Qd5 {[%clk 0:04:37]} 14... Rc8 {[%clk 0:04:30.4]} 15.
Ng5+ {[%clk 0:04:33.8]} 1-0

[Event "Live Chess"]
[Site "Chess.com"]
[Date "2023.05.21"]
[Round "-"]
[White "YichenLFC"]
[Black "JohanKjeldahl"]
[Result "0-1"]
[WhiteElo "974"]
[BlackElo "1880"]
[TimeControl "300"]
[EndTime "23:57:16 PDT"]
[Termination "JohanKjeldahl won on time"]

1. e4 {[%clk 0:04:57.6]} 1... c5 {[%clk 0:04:57.6]} 2. Nc3 {[%clk 0:04:53.5]}
2... e6 {[%clk 0:04:56.3]} 3. Nf3 {[%clk 0:04:47.6]} 3... a6 {[%clk 0:04:54.5]}
4. a4 {[%clk 0:04:43.7]} 4... Nc6 {[%clk 0:04:53.2]} 5. d4 {[%clk 0:04:37.4]}
5... cxd4 {[%clk 0:04:51.2]} 6. Nxd4 {[%clk 0:04:34.7]} 6... Qc7 {[%clk
0:04:50.1]} 7. Nf3 {[%clk 0:04:30.5]} 7... Nf6 {[%clk 0:04:45.9]} 8. g3 {[%clk
0:04:23.6]} 8... Bb4 {[%clk 0:04:42.4]} 9. Bd2 {[%clk 0:03:55.3]} 9... O-O
{[%clk 0:04:40.7]} 10. Bg2 {[%clk 0:03:52.7]} 10... b6 {[%clk 0:04:37.9]} 11.
O-O {[%clk 0:03:48.8]} 11... Bb7 {[%clk 0:04:37.4]} 12. Ne2 {[%clk 0:03:43.6]}
12... Bxd2 {[%clk 0:04:31.5]} 13. Qxd2 {[%clk 0:03:40]} 13... Nxe4 {[%clk
0:04:29.4]} 14. Qe3 {[%clk 0:03:22.8]} 14... d5 {[%clk 0:04:27.6]} 15. c4 {[%clk
0:03:09.5]} 15... Nb4 {[%clk 0:04:13.5]} 16. cxd5 {[%clk 0:03:00.1]} 16... Bxd5
{[%clk 0:04:10.5]} 17. Ned4 {[%clk 0:02:49.9]} 17... Qb7 {[%clk 0:04:03.6]} 18.
Qe1 {[%clk 0:02:38.7]} 18... a5 {[%clk 0:03:56.2]} 19. Rd1 {[%clk 0:02:22.4]}
19... Rac8 {[%clk 0:03:51]} 20. Nd2 {[%clk 0:02:08.7]} 20... Nxd2 {[%clk
0:03:45.5]} 21. Bxd5 {[%clk 0:01:52.6]} 21... Qxd5 {[%clk 0:03:35.8]} 22. Qxd2
{[%clk 0:01:49.4]} 22... Rfd8 {[%clk 0:03:33.7]} 23. Nxe6 {[%clk 0:01:30.9]}
23... fxe6 {[%clk 0:03:26.8]} 24. Qxd5 {[%clk 0:01:12.2]} 24... Rxd5 {[%clk
0:03:23.3]} 25. Rfe1 {[%clk 0:01:06]} 25... Rxd1 {[%clk 0:03:17.8]} 26. Rxd1
{[%clk 0:01:03.1]} 26... Kf7 {[%clk 0:03:16.6]} 27. Rd6 {[%clk 0:00:59.8]} 27...
Rc6 {[%clk 0:03:14.9]} 28. Rd4 {[%clk 0:00:51.6]} 28... e5 {[%clk 0:03:10.1]}
29. Re4 {[%clk 0:00:45.9]} 29... Kf6 {[%clk 0:03:08]} 30. Kf1 {[%clk 0:00:39.7]}
30... Kf5 {[%clk 0:03:03.5]} 31. f3 {[%clk 0:00:37.6]} 31... Rc2 {[%clk
0:02:59.5]} 32. Re2 {[%clk 0:00:32.5]} 32... Rxe2 {[%clk 0:02:56]} 33. Kxe2
{[%clk 0:00:29.9]} 33... e4 {[%clk 0:02:53.4]} 34. b3 {[%clk 0:00:18.6]} 34...
exf3+ {[%clk 0:02:50.7]} 35. Kxf3 {[%clk 0:00:15.9]} 35... g5 {[%clk 0:02:48.1]}
36. h4 {[%clk 0:00:11.4]} 36... gxh4 {[%clk 0:02:45.9]} 37. gxh4 {[%clk
0:00:09.6]} 37... h5 {[%clk 0:02:44.9]} 38. Kg3 {[%clk 0:00:07.2]} 38... Ke4
{[%clk 0:02:43.2]} 39. Kf2 {[%clk 0:00:03.4]} 39... Nc2 {[%clk 0:02:40.6]} 40.
Ke2 {[%clk 0:00:00.8]} 40... Nd4+ {[%clk 0:02:39.1]} 41. Kd2 {[%clk 0:00:00.1]}
41... Nxb3+ {[%clk 0:02:38.1]} 0-1

[Event "Live Chess"]
[Site "Chess.com"]
[Date "2023.05.21"]
[Round "-"]
[White "Ian-Morley"]
[Black "Ferrarifan27"]
[Result "0-1"]
[WhiteElo "1028"]
[BlackElo "2057"]
[TimeControl "300"]
[EndTime "23:57:17 PDT"]
[Termination "Ferrarifan27 won by resignation"]

1. d4 {[%clk 0:04:55.7]} 1... Nf6 {[%clk 0:04:58]} 2. Bf4 {[%clk 0:04:54.8]}
2... c5 {[%clk 0:04:55.8]} 3. c3 {[%clk 0:04:52.5]} 3... Qb6 {[%clk 0:04:54.2]}
4. Qb3 {[%clk 0:04:50.9]} 4... Qxb3 {[%clk 0:04:52.7]} 5. axb3 {[%clk
0:04:50.4]} 5... cxd4 {[%clk 0:04:52]} 6. cxd4 {[%clk 0:04:49.4]} 6... e6 {[%clk
0:04:49.7]} 7. Nf3 {[%clk 0:04:48.5]} 7... d5 {[%clk 0:04:48.7]} 8. e3 {[%clk
0:04:47.8]} 8... Bd7 {[%clk 0:04:45.8]} 9. Be2 {[%clk 0:04:46.5]} 9... Nc6
{[%clk 0:04:44.8]} 10. Nbd2 {[%clk 0:04:45.9]} 10... Bb4 {[%clk 0:04:38.7]} 11.
Ne5 {[%clk 0:04:44.1]} 11... Nxe5 {[%clk 0:04:36.6]} 12. Bxe5 {[%clk 0:04:43.2]}
12... Ne4 {[%clk 0:04:35.8]} 13. Rd1 {[%clk 0:04:40.9]} 13... f6 {[%clk
0:04:25.8]} 14. f3 {[%clk 0:04:39.1]} 14... Nxd2 {[%clk 0:04:23.6]} 15. Rxd2
{[%clk 0:04:38.2]} 15... fxe5 {[%clk 0:04:21.5]} 16. Kd1 {[%clk 0:04:31.7]}
16... Bxd2 {[%clk 0:04:19.6]} 17. Kxd2 {[%clk 0:04:30.9]} 17... exd4 {[%clk
0:04:18.8]} 18. exd4 {[%clk 0:04:30.2]} 18... Rc8 {[%clk 0:04:17.9]} 19. Rc1
{[%clk 0:04:25.4]} 19... Rxc1 {[%clk 0:04:15.5]} 20. Kxc1 {[%clk 0:04:24.7]}
20... Ke7 {[%clk 0:04:14.3]} 0-1

[Event "Live Chess"]
[Site "Chess.com"]
[Date "2023.05.21"]
[Round "-"]
[White "CeladonFish"]
[Black "mirandaasilva"]
[Result "0-1"]
[WhiteElo "1079"]
[BlackElo "1629"]
[TimeControl "300"]
[EndTime "23:57:27 PDT"]
[Termination "mirandaasilva won by resignation"]

1. d4 {[%clk 0:04:58]} 1... g6 {[%clk 0:04:59.6]} 2. c4 {[%clk 0:04:56.7]} 2...
Bg7 {[%clk 0:04:59.3]} 3. Nc3 {[%clk 0:04:56.2]} 3... Nf6 {[%clk 0:04:57.2]} 4.
Nf3 {[%clk 0:04:55.6]} 4... O-O {[%clk 0:04:55]} 5. Bf4 {[%clk 0:04:53]} 5... d6
{[%clk 0:04:53.8]} 6. Nb5 {[%clk 0:04:49]} 6... Nbd7 {[%clk 0:04:53.7]} 7. c5
{[%clk 0:04:47.3]} 7... c6 {[%clk 0:04:48.9]} 8. Nc3 {[%clk 0:04:43.1]} 8...
dxc5 {[%clk 0:04:47.1]} 9. dxc5 {[%clk 0:04:42.1]} 9... Nxc5 {[%clk 0:04:47]}
10. Qxd8 {[%clk 0:04:36.5]} 10... Rxd8 {[%clk 0:04:46.9]} 11. e3 {[%clk
0:04:34.3]} 11... Bf5 {[%clk 0:04:44.1]} 12. Be2 {[%clk 0:04:30.7]} 12... Nd3+
{[%clk 0:04:42.6]} 13. Bxd3 {[%clk 0:04:24.5]} 13... Bxd3 {[%clk 0:04:42.5]} 14.
Ne5 {[%clk 0:04:21.9]} 14... Nh5 {[%clk 0:04:37.1]} 15. Nxd3 {[%clk 0:04:18.4]}
15... Rxd3 {[%clk 0:04:32.9]} 16. O-O {[%clk 0:04:16.5]} 16... Nxf4 {[%clk
0:04:29.1]} 17. exf4 {[%clk 0:04:15.5]} 17... Rad8 {[%clk 0:04:24]} 18. Rfe1
{[%clk 0:04:11.9]} 18... e6 {[%clk 0:04:21.4]} 19. g3 {[%clk 0:04:10]} 19... Rd2
{[%clk 0:04:18.1]} 20. Rad1 {[%clk 0:04:04.5]} 20... Bxc3 {[%clk 0:04:14.6]} 21.
bxc3 {[%clk 0:04:01]} 21... Rxd1 {[%clk 0:04:12.5]} 0-1

[Event "Live Chess"]
[Site "Chess.com"]
[Date "2023.05.21"]
[Round "-"]
[White "Crowded_House"]
[Black "Long1968"]
[Result "1-0"]
[WhiteElo "1682"]
[BlackElo "1008"]
[TimeControl "300"]
[EndTime "23:57:44 PDT"]
[Termination "Crowded_House won on time"]

1. d4 {[%clk 0:04:59]} 1... e6 {[%clk 0:04:56]} 2. Nf3 {[%clk 0:04:55.4]} 2...
c5 {[%clk 0:04:53]} 3. Bg5 {[%clk 0:04:50.9]} 3... Be7 {[%clk 0:04:47.7]} 4.
Bxe7 {[%clk 0:04:49]} 4... Qxe7 {[%clk 0:04:40.7]} 5. c3 {[%clk 0:04:47.6]} 5...
b6 {[%clk 0:04:34.4]} 6. e3 {[%clk 0:04:46.3]} 6... Nc6 {[%clk 0:04:30.5]} 7.
Bd3 {[%clk 0:04:43.9]} 7... Bb7 {[%clk 0:04:26.2]} 8. Nbd2 {[%clk 0:04:40.3]}
8... e5 {[%clk 0:04:21.9]} 9. dxe5 {[%clk 0:04:38.1]} 9... Nxe5 {[%clk
0:04:19.2]} 10. Nxe5 {[%clk 0:04:29.3]} 10... Qxe5 {[%clk 0:04:16]} 11. Nf3
{[%clk 0:04:19]} 11... Bxf3 {[%clk 0:03:57.2]} 12. Qxf3 {[%clk 0:04:10.7]} 12...
Rc8 {[%clk 0:03:20.4]} 13. O-O {[%clk 0:04:07.7]} 13... Nf6 {[%clk 0:03:05.7]}
14. Rfd1 {[%clk 0:03:55.3]} 14... O-O {[%clk 0:02:57.4]} 15. Ba6 {[%clk
0:03:49.9]} 15... Rce8 {[%clk 0:02:37.5]} 16. Bb5 {[%clk 0:03:44]} 16... Re7
{[%clk 0:02:23.4]} 17. h3 {[%clk 0:03:41.9]} 17... Rd8 {[%clk 0:02:18]} 18. Rd2
{[%clk 0:03:30.3]} 18... Ne4 {[%clk 0:02:00.6]} 19. Rd3 {[%clk 0:03:14.6]} 19...
Nd6 {[%clk 0:01:34.9]} 20. Ba4 {[%clk 0:03:01.9]} 20... Nc4 {[%clk 0:01:10.4]}
21. Rb1 {[%clk 0:02:35.8]} 21... Qe4 {[%clk 0:00:44.6]} 22. Qxe4 {[%clk
0:02:34]} 22... Rxe4 {[%clk 0:00:40.6]} 23. Bb3 {[%clk 0:02:33.6]} 23... Na5
{[%clk 0:00:20.9]} 24. Rbd1 {[%clk 0:02:22.9]} 24... Nxb3 {[%clk 0:00:13.4]} 25.
axb3 {[%clk 0:02:22.4]} 25... Re7 {[%clk 0:00:09.3]} 26. Rd6 {[%clk 0:02:21.5]}
26... Kf8 {[%clk 0:00:05.1]} 27. Kf1 {[%clk 0:02:20.6]} 27... Ke8 {[%clk
0:00:01.2]} 28. Ke2 {[%clk 0:02:20.2]} 1-0

[Event "Live Chess"]
[Site "Chess.com"]
[Date "2023.05.21"]
[Round "-"]
[White "profpirate4"]
[Black "diana21strabt"]
[Result "0-1"]
[WhiteElo "1258"]
[BlackElo "1718"]
[TimeControl "300"]
[EndTime "23:58:33 PDT"]
[Termination "diana21strabt won by checkmate"]

1. d4 {[%clk 0:04:58]} 1... Nf6 {[%clk 0:04:58.9]} 2. c4 {[%clk 0:04:56.9]} 2...
g6 {[%clk 0:04:58.1]} 3. Nc3 {[%clk 0:04:55.4]} 3... Bg7 {[%clk 0:04:57.4]} 4.
f3 {[%clk 0:04:54.6]} 4... O-O {[%clk 0:04:56]} 5. e4 {[%clk 0:04:53.8]} 5... d6
{[%clk 0:04:55]} 6. Be3 {[%clk 0:04:53]} 6... Nbd7 {[%clk 0:04:53.8]} 7. Nge2
{[%clk 0:04:51.9]} 7... e5 {[%clk 0:04:52.8]} 8. d5 {[%clk 0:04:50.4]} 8... b6
{[%clk 0:04:50.9]} 9. Qd2 {[%clk 0:04:46.3]} 9... Nc5 {[%clk 0:04:48.9]} 10.
O-O-O {[%clk 0:04:42.9]} 10... a5 {[%clk 0:04:47.4]} 11. Ng3 {[%clk 0:04:37.6]}
11... a4 {[%clk 0:04:44.6]} 12. h4 {[%clk 0:04:32.9]} 12... a3 {[%clk
0:04:42.6]} 13. b3 {[%clk 0:04:30.2]} 13... Bd7 {[%clk 0:04:32.7]} 14. h5 {[%clk
0:04:27.7]} 14... Qe8 {[%clk 0:04:18.4]} 15. hxg6 {[%clk 0:04:25.1]} 15... fxg6
{[%clk 0:04:17]} 16. Bh6 {[%clk 0:04:22.6]} 16... Bxh6 {[%clk 0:04:14.2]} 17.
Qxh6 {[%clk 0:04:20.7]} 17... Rf7 {[%clk 0:04:10.6]} 18. Nb5 {[%clk 0:04:09.9]}
18... Bxb5 {[%clk 0:04:08.8]} 19. cxb5 {[%clk 0:04:08.7]} 19... Ra5 {[%clk
0:04:02.6]} 20. b4 {[%clk 0:04:02.1]} 20... Rxb5 {[%clk 0:03:58.2]} 21. Bxb5
{[%clk 0:03:58.8]} 21... Qxb5 {[%clk 0:03:55.2]} 22. bxc5 {[%clk 0:03:57.7]}
22... Qxc5+ {[%clk 0:03:53.8]} 23. Kd2 {[%clk 0:03:51.1]} 23... Qf2+ {[%clk
0:03:50.9]} 24. Kc1 {[%clk 0:03:38.5]} 24... Qb2# {[%clk 0:03:48.3]} 0-1

[Event "Live Chess"]
[Site "Chess.com"]
[Date "2023.05.21"]
[Round "-"]
[White "ProfPoisson"]
[Black "KeithArkell"]
[Result "0-1"]
[WhiteElo "1184"]
[BlackElo "2555"]
[TimeControl "300"]
[EndTime "23:58:50 PDT"]
[Termination "KeithArkell won by checkmate"]

1. e4 {[%clk 0:04:56.6]} 1... c6 {[%clk 0:04:59.3]} 2. d4 {[%clk 0:04:53.9]}
2... d5 {[%clk 0:04:58.6]} 3. exd5 {[%clk 0:04:52.4]} 3... cxd5 {[%clk
0:04:57.9]} 4. c4 {[%clk 0:04:48.6]} 4... Nf6 {[%clk 0:04:56.9]} 5. Nc3 {[%clk
0:04:42.2]} 5... g6 {[%clk 0:04:36.3]} 6. Qb3 {[%clk 0:04:36.3]} 6... Bg7 {[%clk
0:04:35.1]} 7. cxd5 {[%clk 0:04:30.6]} 7... O-O {[%clk 0:04:33.9]} 8. Be3 {[%clk
0:04:18.6]} 8... Qb6 {[%clk 0:04:29.1]} 9. Qxb6 {[%clk 0:04:11.1]} 9... axb6
{[%clk 0:04:27.7]} 10. g3 {[%clk 0:04:08.5]} 10... Na6 {[%clk 0:04:26.5]} 11.
Bg2 {[%clk 0:04:05.5]} 11... Nb4 {[%clk 0:04:25.3]} 12. O-O-O {[%clk 0:03:59.5]}
12... Nxa2+ {[%clk 0:04:22]} 13. Nxa2 {[%clk 0:03:57]} 13... Rxa2 {[%clk
0:04:20.3]} 14. Ne2 {[%clk 0:03:45.6]} 14... Bf5 {[%clk 0:04:15.1]} 15. d6
{[%clk 0:03:27.3]} 15... Rc8+ {[%clk 0:04:07.2]} 16. Nc3 {[%clk 0:03:25]} 16...
exd6 {[%clk 0:04:01.3]} 17. Bxb7 {[%clk 0:03:20.8]} 17... Rc7 {[%clk 0:03:55.8]}
18. Bf3 {[%clk 0:03:09.1]} 18... Ne4 {[%clk 0:03:52.2]} 19. Bxe4 {[%clk
0:03:06]} 19... Bxe4 {[%clk 0:03:47.9]} 20. Rhe1 {[%clk 0:03:03.6]} 20... Bf3
{[%clk 0:03:27.8]} 21. Kb1 {[%clk 0:02:40.4]} 21... Bxd1 {[%clk 0:03:24.4]} 22.
Kxa2 {[%clk 0:02:37.2]} 22... Bc2 {[%clk 0:03:23.5]} 23. Nd5 {[%clk 0:02:28.3]}
23... Ra7# {[%clk 0:03:21.5]} 0-1